{"text_format":"1","workbook":"xlsx","n_sheets":2,"sheets":["Dados","Ofício"],"not_rendered":{"charts":0,"images":2,"macros":1,"external_links":0,"defined_names":1,"comments":0,"pivot_tables":0},"unopened":[],"bounds":{"document_bytes":16777216,"sheet_cells":100000,"rows_first":2000,"rows_last":500,"rows_between":2000,"halvings":0,"cell_chars":16384,"cell_head_chars":4096},"cells_cut":0,"cells_raw":0,"read":"whole","date_system":"1900"}

{"sheet":"Dados","index":0,"n_rows":14,"n_cols":2,"rows_kept":14,"cut":false,"hidden":false,"merged":[[1,0,1,1],[0,0,0,1]]}
["Orientações: Essa planilha irá gerar o TCUD. Para que ela funcione, você deve fazer o download da mesma no seu computador, pois ela tem macros. Após  prencher os dados nas células da cor cinza,  vá para aba \"Ofício\" e Clique em \"Transformar em PDF\" . Será gerado o documento \"Ofício_TCUD_ data.pdf\". Salve o documento para que você e a sua equipe possam assinar digitalmente e nos encaminhar.  "]
["Identificação dos membros do grupo de pesquisa"]
["Nome completo sem abreviação","RG"]
[]
[]
[]
[]
[]
[]
["Dados do Projeto - Título"]
["Departamento/ Faculdade/ Curso "]
["Pesquisador principal "]
["Descrição dos dados = Preencha  o objeto e período da coleta dos dados (ex.: Serão coletados dados de  cirurgias ortopédicas entre maio de 2001 e maio de 2007)","Preencha  o objeto e período da coleta dos dados (ex.: Serão coletados dados de  cirurgias ortopédicas entre maio de 2001 e maio de 2007)"]
["Local, Data "]

{"sheet":"Ofício","index":1,"n_rows":91,"n_cols":6,"rows_kept":91,"cut":false,"hidden":false,"merged":[[91,0,93,5],[79,0,79,5],[80,0,89,5],[61,0,63,1],[61,2,63,5],[64,0,66,1],[67,0,69,1],[64,2,66,5],[67,2,69,5],[70,2,72,5],[73,0,75,1],[73,2,75,5],[76,2,78,5],[76,0,78,1],[90,0,90,5],[3,0,3,5],[5,0,5,5],[13,0,13,5],[14,0,14,5],[15,0,16,5],[7,0,7,1],[8,0,8,1],[9,0,9,1],[12,0,12,1],[6,0,6,5],[10,0,10,1],[11,0,11,1],[7,2,7,5],[8,2,8,5],[9,2,9,5],[10,2,10,5],[11,2,11,5],[12,2,12,5],[70,0,72,1],[17,0,17,5],[18,0,18,5],[19,0,19,5],[20,0,20,5],[21,0,21,5],[30,0,30,5],[57,0,57,5],[58,0,59,5],[23,0,29,5],[31,0,45,5],[60,0,60,5],[22,0,22,5]]}
[]
[]
[]
["Termo de Compromissso de Utilização de dados TCUD"]
[null,null,null,null,null,"01/02"]
["Identificação dos membros do grupo de pesquisa "]
["Nome completo (sem abreviação )                           RG   "]
[{"$f":"IF(Dados!A4=\"\",\"NA\",Dados!A4)","v":"NA"},null,{"$f":"IF(Dados!B4=\"\",\"NA\",Dados!B4)","v":"NA"}]
[{"$f":"IF(Dados!A5=\"\",\"NA\",Dados!A5)","v":"NA"},null,{"$f":"IF(Dados!B5=\"\",\"NA\",Dados!B5)","v":"NA"}]
[{"$f":"IF(Dados!A6=\"\",\"NA\",Dados!A6)","v":"NA"},null,{"$f":"IF(Dados!B6=\"\",\"NA\",Dados!B6)","v":"NA"}]
[{"$f":"IF(Dados!A7=\"\",\"NA\",Dados!A7)","v":"NA"},null,{"$f":"IF(Dados!B7=\"\",\"NA\",Dados!B7)","v":"NA"}]
[{"$f":"IF(Dados!A8=\"\",\"NA\",Dados!A8)","v":"NA"},null,{"$f":"IF(Dados!B8=\"\",\"NA\",Dados!B8)","v":"NA"}]
[{"$f":"IF(Dados!A9=\"\",\"NA\",Dados!A9)","v":"NA"},null,{"$f":"IF(Dados!B9=\"\",\"NA\",Dados!B9)","v":"NA"}]
[]
["Dados do Projeto - Título"]
[{"$f":"Dados!B10","v":0}]
[]
["Departamento/Faculdade/Setor "]
[{"$f":"Dados!B11","v":0}]
["Pesquisador principal "]
[{"$f":"Dados!B12","v":0}]
["Descrição dos dados "]
[{"$f":"Dados!B13","v":"Preencha  o objeto e período da coleta dos dados (ex.: Serão coletados dados de  cirurgias ortopédicas entre maio de 2001 e maio de 2007)"}]
["Os dados serão coletados somente após aprovação do projeto de pesquisa pelo Comitê de Ética em Pesquisa Envolvendo Seres Humanos - Campus Saúde(CEP-Saúde) e (comitês de ética coparticipantes, se aplicável). Os dados obtidos na pesquisa somente serão utilizados para o projeto vinculado. Para dúvidas de aspecto ético, pode ser contactado o Comitê de Ética em Pesquisa Envolvendo Seres Humanos  (CEP/Saúde): Av. Prof. Alfredo Balena, 190, sala 250. Belo Horizonte, MG. CEP 30130-100.  Telefone: (031)3409-9736. Email: cepsaude@medicina.ufmg.br. "]
[]
[]
[]
[]
[]
[]
["Declaração dos Pesquisadores "]
["Os pesquisadores envolvidos no projeto se comprometem a manter a confidencialidade sobre os dados coletados nos arquivos do local do banco ou instituição de coleta, bem como a privacidade de seus conteúdos, como preconizam a Resolução 466/12, e suas complementares, do Conselho Nacional de Saúde.\nDeclaramos entender que a integridade das informações e a garantia da confidencialidade dos dados e a privacidade dos indivíduos que terão suas informações acessadas estão sob nossa responsabilidade. Também declaramos que não repassaremos os dados coletados ou o banco de dados em sua íntegra, ou parte dele, a pessoas não envolvidas na equipe da pesquisa. Os dados obtidos na pesquisa somente serão utilizados para este projeto. Todo e qualquer outro uso que venha a ser planejado, será objeto de novo projeto de pesquisa, e será submetido à apreciação do Comitê de Ética Institucional.\nDevido à impossibilidade de obtenção do Termo de Consentimento Livre e Esclarecido de todos os sujeitos, assinaremos esse Termo de Consentimento de Uso de Banco de Dados, para a salvaguarda dos direitos dos participante"]
[]
[]
[]
[]
[]
[]
[]
[]
[]
[]
[]
[]
[]
[]
[]
[]
[]
[]
[]
[]
[]
[]
[]
["....continuação",null,null,null,null,"02/02"]
[]
["Local, Data "]
[{"$f":"Dados!B14","v":0}]
[]
["Nome completo (sem abreviação )                                                   Assinatura         "]
[{"$f":"IF(Dados!A4=\"\",\"NA\",Dados!A4)","v":"NA"}]
[]
[]
[{"$f":"IF(Dados!A5=\"\",\"NA\",Dados!A5)","v":"NA"}]
[]
[]
[{"$f":"IF(Dados!A6=\"\",\"NA\",Dados!A6)","v":"NA"}]
[]
[]
[{"$f":"IF(Dados!A7=\"\",\"NA\",Dados!A7)","v":"NA"}]
[]
[]
[{"$f":"IF(Dados!A8=\"\",\"NA\",Dados!A8)","v":"NA"}]
[]
[]
[{"$f":"IF(Dados!A9=\"\",\"NA\",Dados!A9)","v":"NA"}]
[]
[]
["Autorização da Instituição "]
["Declaramos para os devidos fins, que cederemos aos pesquisadores apresentados neste termo, o acesso aos dados solicitados para serem utilizados nesta pesquisa.\nEsta autorização está condicionada ao cumprimento do (a) pesquisador (a) aos requisitos da Resolução 466/12 e suas complementares, comprometendo-se o(a) mesmo(a) a utilizar os dados dos participantes da pesquisa, exclusivamente para os fins científicos, mantendo o sigilo e garantindo a não utilização das informações em prejuízo das pessoas e/ou das comunidades.                                                                                                                                                   Antes de iniciar a coleta de dados o/a pesquisador/a deverá apresentar o Parecer Consubstanciado devidamente aprovado, emitido por Comitê de Ética em Pesquisa Envolvendo Seres Humanos, credenciado ao Sistema CEP/CONEP."]
[]
[]
[]
[]
[]
[]
[]
[]
[]
["Nome Legível e Carimbo do Responsável pela anuência da Instituição "]